fUST/lending_fUST_20240704
["ID","MTS","AMOUNT","RATE_DAILY","PERIOD"]
[331084261,1720069854991,-723.79,0.00016174,2]
[331084262,1720069855000,-822.01,0.00016174,2]
[331084263,1720069855008,-500.0,0.00016174,2]
[331084264,1720069855020,-500.0,0.00016174,2]
[331084265,1720069855030,-826.94,0.00016174,2]
[331084266,1720069855039,-625.83,0.00016174,2]
[331084267,1720069855049,-3651.22,0.00016174,2]
[331084268,1720069855059,-2134.72,0.00016174,2]
[331084269,1720069855068,-500.0,0.00016174,2]
[331084270,1720069855077,-211.09469019,0.00016174,2]
[331084271,1720069855086,-500.0,0.00016174,2]
[331084272,1720069855096,-492.3864458,0.00016174,2]
[331084273,1720069855108,-753.0,0.00016174,2]
[331084274,1720069855118,-500.0,0.00016174,2]
[331084275,1720069855128,-500.0,0.00016174,2]
[331084276,1720069855137,-500.0,0.00016174,2]
[331084277,1720069855147,-500.0,0.00016174,2]
[331084278,1720069855157,-1176.74,0.00016174,2]
[331084279,1720069855166,-504.76238846,0.00016174,2]
[331084280,1720069855178,-500.0,0.00016174,2]
[331084281,1720069855188,-753.01,0.00016174,2]
[331084282,1720069855198,-3123.21234279,0.00016174,2]
[331084311,1720070537286,2516.5154663,0.0001322,2]
[331084312,1720070551174,156.22982588,9.999e-05,2]
[331084315,1720070624957,16504.0,0.00025,120]
[331084316,1720070640846,869.79610735,9.999e-05,2]
[331084319,1720070737130,-206.47969048,0.00014055,2]
[331084321,1720070830121,-103.22608902,0.00014055,2]
[331084322,1720070830142,-138.96744391,0.00014145,2]
[331084323,1720070832116,-25.47071524,0.00014145,2]
[331084324,1720070832136,-130.27985123,0.00014244,2]
[331084325,1720070832162,-159.62149372,0.00014244,2]
[331084326,1720070842105,-242.84272659,0.00014244,2]
[331084327,1720070842127,-500.0,0.00014244,2]
[331084328,1720070842152,-3.49712154,0.00014244,2]
[331084329,1720070842181,-484.79593104,0.00014244,2]
[331084330,1720070842199,-77.22853603,0.00014244,2]
[331084331,1720070849112,-95.40921481,0.00014244,2]
[331084332,1720070849134,-243.12823934,0.00014244,2]
[331084333,1720070853150,-56.87176066,0.00014244,2]
[331084334,1720070853171,-300.0,0.00014244,2]
[331084335,1720070853191,-500.0,0.00014245,2]
[331084336,1720070853210,-190.4560022,0.00014245,2]
[331084337,1720070853229,-742.52,0.00014245,2]
[331084338,1720070853249,-500.0,0.00014245,2]
[331084339,1720070853270,-470.80009238,0.00014245,2]
[331084374,1720071032746,-228.31888781,0.00014243,2]
[331084376,1720071032756,-157.69328504,0.00014243,2]
[331084429,1720071038935,-265.86088035,0.00014243,2]
[331084430,1720071038945,-300.0,0.00014243,2]
[331084431,1720071038956,-500.0,0.00014243,2]
[331084432,1720071038965,-3481.75695214,0.00014244,2]
[331084433,1720071039013,-56085.68979946,0.00014244,2]
[331084434,1720071039023,-500.0,0.00014244,2]
[331084435,1720071039032,-1570.84,0.00014244,2]
[331084436,1720071039043,-500.0,0.00014244,2]
[331084437,1720071039053,-9214.43,0.00014244,2]
[331084438,1720071039064,-1090.17,0.00014244,2]
[331084439,1720071039074,-2043.3,0.00014244,2]
[331084440,1720071039084,-517.75,0.00014244,2]
[331084441,1720071039100,-500.0,0.00014244,2]
[331084442,1720071039110,-29.19990762,0.00014245,2]
[331084443,1720071039120,-500.0,0.00014245,2]
[331084444,1720071039131,-1156.87,0.00014245,2]
[331084445,1720071039142,-500.0,0.00014245,2]
[331084446,1720071039152,-500.0,0.00014245,2]
[331084447,1720071039162,-500.0,0.00014245,2]
[331084448,1720071039173,-663.22,0.00014245,2]
[331084449,1720071039183,-965.03,0.00014245,2]
[331084451,1720071039194,-500.0,0.00014245,2]
[331084452,1720071039204,-500.0,0.00014245,2]
[331084453,1720071039214,-500.0,0.00014245,2]
[331084454,1720071039224,-565.22,0.00014245,2]
[331084455,1720071039234,-520.01352078,0.00014245,2]
[331084456,1720071039245,-500.0,0.00014245,2]
[331084457,1720071039254,-261.23370233,0.00014245,2]
[331084458,1720071039264,-500.0,0.00014245,2]
[331084459,1720071039275,-225.18702295,0.00014245,2]
[331084460,1720071039285,-591.25780219,0.00014245,2]
[331084461,1720071039295,-500.0,0.00014245,2]
[331084462,1720071039305,-500.0,0.00014245,2]
[331084463,1720071039316,-500.0,0.00014245,2]
[331084464,1720071039326,-500.0,0.00014245,2]
[331084465,1720071039336,-500.0,0.00014245,2]
[331084466,1720071039346,-500.0,0.00014245,2]
[331084467,1720071039356,-339.18171505,0.00014245,2]
[331084468,1720071039365,-500.0,0.00014245,2]
[331084469,1720071039375,-500.0,0.00014245,2]
[331084470,1720071039386,-500.0,0.00014245,2]
[331084471,1720071039396,-500.0,0.00014245,2]
[331084472,1720071039406,-500.0,0.00014245,2]
[331084473,1720071039417,-500.0,0.00014245,2]
[331084474,1720071039427,-510.90363991,0.00014245,2]
[331084475,1720071039438,-500.0,0.00014245,2]
[331084476,1720071039448,-500.0,0.00014245,2]
[331084477,1720071039459,-500.0,0.00014245,2]
[331084478,1720071039469,-500.0,0.00014245,2]
[331084479,1720071039480,-500.0,0.00014245,2]
[331084480,1720071039490,-500.0,0.00014245,2]
[331084481,1720071039501,-500.0,0.00014245,2]
[331084482,1720071039512,-500.0,0.00014245,2]
[331084483,1720071039522,-596.11,0.00014245,2]
[331084484,1720071039532,-1443.45,0.00014245,2]
[331084485,1720071039543,-500.0,0.00014245,2]
[331084486,1720071039554,-1646.01,0.00014245,2]
[331084487,1720071039564,-823.14,0.00014245,2]
[331084488,1720071039574,-500.0,0.00014245,2]
[331084489,1720071039585,-500.0,0.00014245,2]
[331084490,1720071039595,-500.0,0.00014245,2]
[331084491,1720071039605,-365.89997625,0.00014245,2]
[331084492,1720071039616,-500.0,0.00014245,2]
[331084493,1720071039626,-575.58,0.00014245,2]
[331084494,1720071039637,-659.09,0.00014245,2]
[331084495,1720071039647,-500.0,0.00014245,2]
[331084496,1720071039657,-500.0,0.00014245,2]
[331084497,1720071039667,-2957.53,0.00014245,2]
[331084498,1720071039677,-500.0,0.00014245,2]
[331084499,1720071039687,-500.0,0.00014245,2]
[331084500,1720071039696,-504.57823144,0.00014245,2]
[331084501,1720071039706,-502.38824736,0.00014245,2]
[331084502,1720071039717,-501.23035577,0.00014245,2]
[331084503,1720071039727,-400.0,0.00014245,2]
[331084504,1720071039737,-500.0,0.00014245,2]
[331084505,1720071039749,-500.0,0.00014245,2]
[331084506,1720071039759,-500.0,0.00014245,2]
[331084507,1720071039769,-500.0,0.00014245,2]
[331084508,1720071039780,-500.0,0.00014245,2]
[331084509,1720071039790,-500.0,0.00014245,2]
[331084510,1720071039801,-195.44507413,0.00014245,2]
[331084511,1720071039811,-500.0,0.00014245,2]
[331084512,1720071039822,-500.0,0.00014245,2]
[331084513,1720071039832,-500.0,0.00014245,2]
[331084514,1720071039842,-984.97,0.00014245,2]
[331084515,1720071039852,-1782.01,0.00014245,2]
[331084516,1720071039862,-630.8,0.00014245,2]
[331084517,1720071039872,-7288.45,0.00014245,2]
[331084518,1720071039882,-2975.16,0.00014245,2]
[331084519,1720071040032,-295.83298247,0.00014245,2]
[331084520,1720071040043,-630.11,0.00014245,2]
[331084521,1720071040053,-500.0,0.00014245,2]
[331084522,1720071040064,-500.0,0.00014245,2]
[331084523,1720071040074,-500.0,0.00014245,2]
[331084524,1720071040084,-500.0,0.00014245,2]
[331084525,1720071040100,-500.0,0.00014245,2]
[331084526,1720071040110,-500.0,0.00014245,2]
[331084527,1720071040120,-500.0,0.00014245,2]
[331084528,1720071040132,-500.0,0.00014245,2]
[331084529,1720071040143,-500.0,0.00014245,2]
[331084530,1720071040152,-59567.4467516,0.00014245,2]
[331084531,1720071040164,-10862.77945618,0.00014245,2]
[331084532,1720071040174,-59567.4467516,0.00014246,2]
[331084533,1720071040184,-500.0,0.00014253,2]
[331084534,1720071040194,-500.0,0.00014254,2]
[331084535,1720071040204,-500.0,0.00014254,2]
[331084536,1720071040214,-506.3554892,0.00014254,2]
[331084537,1720071040224,-500.0,0.00014254,2]
[331084538,1720071040234,-500.0,0.00014254,2]
[331084539,1720071040244,-500.0,0.00014254,2]
[331084540,1720071040255,-500.0,0.00014254,2]
[331084541,1720071040264,-500.0,0.00014254,2]
[331084542,1720071040274,-500.0,0.00014254,2]
[331084543,1720071040284,-500.0,0.00014254,2]
[331084544,1720071040294,-500.0,0.00014254,2]
[331084545,1720071040304,-264.61299386,0.00014254,2]
[331084546,1720071040314,-553.63665553,0.00014254,2]
[331084547,1720071040325,-500.0,0.00014254,2]
[331084548,1720071040335,-490.48160834,0.00014254,2]
[331084549,1720071040345,-510.01687727,0.00014254,2]
[331084550,1720071040355,-500.0,0.00014254,2]
[331084551,1720071040365,-500.0,0.00014254,2]
[331084552,1720071040375,-500.0,0.00014254,2]
[331084553,1720071040384,-500.0,0.00014254,2]
[331084554,1720071040394,-500.0,0.00014254,2]
[331084556,1720071040404,-500.0,0.00014254,2]
[331084557,1720071040415,-500.0,0.00014254,2]
[331084558,1720071040424,-500.0,0.00014254,2]
[331084559,1720071040435,-500.0,0.00014254,2]
[331084560,1720071040444,-500.0,0.00014254,2]
[331084561,1720071040454,-503.50219677,0.00014254,2]
[331084562,1720071040464,-618.63,0.00014254,2]
[331084563,1720071040474,-500.0,0.00014254,2]
[331084565,1720071040484,-500.0,0.00014254,2]
[331084566,1720071040495,-500.0,0.00014254,2]
[331084567,1720071040505,-204.18148296,0.00014254,2]
[331084568,1720071040515,-500.0,0.00014254,2]
[331084569,1720071040525,-500.0,0.00014254,2]
[331084570,1720071040535,-500.0,0.00014254,2]
[331084571,1720071040545,-500.0,0.00014254,2]
[331084572,1720071040555,-500.0,0.00014254,2]
[331084574,1720071040566,-500.0,0.00014254,2]
[331084576,1720071040576,-500.0,0.00014254,2]
[331084577,1720071040586,-500.0,0.00014254,2]
[331084578,1720071040596,-500.0,0.00014254,2]
[331084579,1720071040606,-500.0,0.00014254,2]
[331084580,1720071040616,-500.0,0.00014254,2]
[331084581,1720071040626,-500.0,0.00014254,2]
[331084582,1720071040636,-500.0,0.00014254,2]
[331084583,1720071040646,-500.0,0.00014254,2]
[331084585,1720071040656,-500.0,0.00014254,2]
[331084586,1720071040666,-512.5740281,0.00014254,2]
[331084588,1720071040677,-500.0,0.00014254,2]
[331084589,1720071040688,-500.0,0.00014254,2]
[331084591,1720071040711,-500.0,0.00014254,2]
[331084592,1720071040722,-500.0,0.00014254,2]
[331084593,1720071040734,-500.0,0.00014254,2]
[331084595,1720071040745,-500.0,0.00014254,2]
[331084597,1720071040756,-500.0,0.00014254,2]
[331084599,1720071040768,-500.0,0.00014254,2]
[331084601,1720071040779,-597.83603967,0.00014254,2]
[331084602,1720071040790,-500.66358101,0.00014254,2]
[331084603,1720071040800,-500.0,0.00014254,2]
[331084604,1720071040811,-500.0,0.00014254,2]
[331084606,1720071040822,-500.0,0.00014254,2]
[331084607,1720071040833,-500.0,0.00014254,2]
[331084609,1720071040843,-518.24245615,0.00014254,2]
[331084611,1720071040853,-500.0,0.00014254,2]
[331084612,1720071040863,-500.0,0.00014254,2]
[331084613,1720071040873,-500.0,0.00014254,2]
[331084614,1720071040883,-500.0,0.00014254,2]
[331084616,1720071040893,-500.0,0.00014254,2]
[331084618,1720071040904,-500.0,0.00014254,2]
[331084619,1720071040914,-500.0,0.00014254,2]
[331084620,1720071040924,-507.73435802,0.00014254,2]
[331084621,1720071040935,-500.0,0.00014254,2]
[331084622,1720071040945,-500.0,0.00014254,2]
[331084623,1720071040955,-500.0,0.00014254,2]
[331084624,1720071040966,-500.0,0.00014254,2]
[331084625,1720071040977,-500.0,0.00014254,2]
[331084626,1720071040987,-500.0,0.00014254,2]
[331084627,1720071040997,-500.0,0.00014254,2]
[331084628,1720071041007,-500.0,0.00014254,2]
[331084629,1720071041017,-500.0,0.00014254,2]
[331084630,1720071041027,-555.06375848,0.00014254,2]
[331084631,1720071041038,-196.87128302,0.00014254,2]
[331084632,1720071041048,-418.94298943,0.00014254,2]
[331084633,1720071041057,-500.0,0.00014254,2]
[331084634,1720071041068,-500.0,0.00014254,2]
[331084635,1720071041078,-273.26497135,0.00014254,2]
[331084636,1720071041091,-500.0,0.00014254,2]
[331084637,1720071041101,-500.0,0.00014254,2]
[331084638,1720071041111,-500.0,0.00014254,2]
[331084639,1720071041121,-500.0,0.00014254,2]
[331084640,1720071041133,-500.0,0.00014254,2]
[331084641,1720071041143,-500.0,0.00014254,2]
[331084642,1720071041154,-441.1317508,0.00014254,2]
[331084643,1720071041164,-500.0,0.00014254,2]
[331084644,1720071041175,-191.02253911,0.00014254,2]
[331084645,1720071041186,-500.0,0.00014254,2]
[331084646,1720071041196,-500.0,0.00014254,2]
[331084647,1720071041206,-357.72624738,0.00014254,2]
[331084648,1720071041216,-508.59456744,0.00014254,2]
[331084649,1720071041226,-511.56005488,0.00014254,2]
[331084650,1720071041236,-500.0,0.00014254,2]
[331084651,1720071041247,-504.08711633,0.00014254,2]
[331084652,1720071041257,-501.59215236,0.00014254,2]
[331084654,1720071041269,-504.17721381,0.00014254,2]
[331084655,1720071041282,-500.0,0.00014254,2]
[331084656,1720071041292,-500.0,0.00014254,2]
[331084657,1720071041302,-422.94484845,0.00014254,2]
[331084658,1720071041312,-506.63905496,0.00014254,2]
[331084659,1720071041321,-500.0,0.00014254,2]
[331084660,1720071041331,-500.0,0.00014254,2]
[331084661,1720071041342,-500.0,0.00014254,2]
[331084662,1720071041351,-500.0,0.00014254,2]
[331084663,1720071041361,-263.02224504,0.00014254,2]
[331084664,1720071041372,-500.0,0.00014254,2]
[331084665,1720071041382,-500.0,0.00014254,2]
[331084666,1720071041392,-500.0,0.00014254,2]
[331084667,1720071041402,-571.17164899,0.00014254,2]
[331084668,1720071041414,-500.0,0.00014254,2]
[331084669,1720071041424,-500.0,0.00014254,2]
[331084670,1720071041434,-500.0,0.00014254,2]
[331084671,1720071041443,-500.0,0.00014254,2]
[331084672,1720071041454,-500.0,0.00014254,2]
[331084673,1720071041464,-500.0,0.00014254,2]
[331084674,1720071041474,-500.0,0.00014254,2]
[331084675,1720071041483,-502.43036955,0.00014254,2]
[331084676,1720071041498,-500.0,0.00014254,2]
[331084677,1720071041508,-500.0,0.00014254,2]
[331084678,1720071041518,-500.0,0.00014254,2]
[331084679,1720071041528,-500.0,0.00014254,2]
[331084680,1720071041538,-500.0,0.00014254,2]
[331084681,1720071041548,-500.0,0.00014254,2]
[331084682,1720071041561,-516.42583207,0.00014254,2]
[331084683,1720071041571,-500.0,0.00014254,2]
[331084684,1720071041582,-500.0,0.00014254,2]
[331084685,1720071041592,-848.44,0.00014255,2]
[331084686,1720071041602,-500.0,0.00014255,2]
[331084687,1720071041612,-500.0,0.00014255,2]
[331084688,1720071041623,-500.0,0.00014255,2]
[331084689,1720071041633,-500.0,0.00014255,2]
[331084690,1720071041643,-500.0,0.00014255,2]
[331084691,1720071041652,-500.0,0.00014255,2]
[331084692,1720071041662,-500.0,0.00014255,2]
[331084693,1720071041672,-2897.49,0.00014255,2]
[331084694,1720071041682,-500.0,0.00014255,2]
[331084695,1720071041692,-500.0,0.00014255,2]
[331084696,1720071041702,-500.0,0.00014255,2]
[331084697,1720071041712,-500.0,0.00014255,2]
[331084698,1720071041723,-500.0,0.00014255,2]
[331084699,1720071041732,-500.0,0.00014255,2]
[331084700,1720071041742,-593.18,0.00014255,2]
[331084701,1720071041752,-500.0,0.00014255,2]
[331084702,1720071041763,-500.0,0.00014255,2]
[331084703,1720071041773,-547.9,0.00014255,2]
[331084704,1720071041783,-500.0,0.00014255,2]
[331084705,1720071041792,-500.0,0.00014255,2]
[331084706,1720071041803,-500.0,0.00014255,2]
[331084707,1720071041813,-500.0,0.00014255,2]
[331084708,1720071041823,-500.0,0.00014255,2]
[331084709,1720071041832,-500.0,0.00014255,2]
[331084710,1720071041843,-500.0,0.00014255,2]
[331084711,1720071041852,-500.0,0.00014255,2]
[331084712,1720071041862,-500.0,0.00014255,2]
[331084713,1720071041872,-567.35,0.00014255,2]
[331084714,1720071041882,-500.0,0.00014255,2]
[331084715,1720071041892,-500.0,0.00014255,2]
[331084716,1720071041902,-500.0,0.00014255,2]
[331084717,1720071041912,-500.0,0.00014255,2]
[331084718,1720071041922,-500.0,0.00014255,2]
[331084719,1720071041932,-500.0,0.00014255,2]
[331084720,1720071041942,-500.0,0.00014255,2]
[331084721,1720071041953,-500.0,0.00014255,2]
[331084722,1720071041963,-500.0,0.00014255,2]
[331084723,1720071041973,-505.94327232,0.00014255,2]
[331084724,1720071041983,-500.0,0.00014255,2]
[331084725,1720071041994,-500.0,0.00014255,2]
[331084726,1720071042004,-500.0,0.00014255,2]
[331084727,1720071042015,-334.08763431,0.00014255,2]
[331084728,1720071042024,-500.0,0.00014255,2]
[331084729,1720071042034,-500.0,0.00014255,2]
[331084730,1720071042045,-500.0,0.00014255,2]
[331084731,1720071042055,-500.0,0.00014255,2]
[331084732,1720071042066,-500.0,0.00014255,2]
[331084733,1720071042076,-500.0,0.00014255,2]
[331084734,1720071042087,-500.0,0.00014255,2]
[331084735,1720071042100,-561.16821501,0.00014255,2]
[331084736,1720071042110,-500.0,0.00014255,2]
[331084737,1720071042120,-500.0,0.00014255,2]
[331084738,1720071042130,-500.0,0.00014255,2]
[331084739,1720071042141,-500.0,0.00014255,2]
[331084740,1720071042150,-500.0,0.00014255,2]
[331084741,1720071042160,-500.0,0.00014256,2]
[331084742,1720071042174,-506.20333635,0.00014256,2]
[331084743,1720071042185,-500.0,0.00014256,2]
[331084744,1720071042195,-500.0,0.00014256,2]
[331084745,1720071042205,-500.0,0.00014256,2]
[331084746,1720071042216,-291.51256337,0.00014256,2]
[331084747,1720071042226,-500.0,0.00014256,2]
[331084748,1720071042237,-500.0,0.00014256,2]
[331084749,1720071042247,-500.0,0.00014256,2]
[331084750,1720071042257,-500.0,0.00014256,2]
[331084751,1720071042267,-216.85297782,0.00014256,2]
[331084752,1720071042278,-500.0,0.00014256,2]
[331084753,1720071042288,-191.49592881,0.00014256,2]
[331084754,1720071042299,-500.0,0.00014256,2]
[331084755,1720071042310,-500.0,0.00014256,2]
[331084756,1720071042320,-502.12413421,0.00014256,2]
[331084757,1720071042331,-503.48209233,0.00014256,2]
[331084758,1720071042341,-504.23984414,0.00014256,2]
[331084759,1720071042351,-500.0,0.00014256,2]
[331084760,1720071042362,-500.0,0.00014256,2]
[331084761,1720071042372,-270.48384222,0.00014256,2]
[331084762,1720071042382,-7436.32,0.00014256,2]
[331084763,1720071042392,-500.0,0.00014256,2]
[331084764,1720071042402,-500.0,0.00014256,2]
[331084765,1720071042413,-500.0,0.00014256,2]
[331084766,1720071042425,-500.0,0.00014256,2]
[331084767,1720071042435,-500.0,0.00014256,2]
[331084768,1720071042444,-500.0,0.00014266,2]
[331084769,1720071042454,-500.0,0.00014267,2]
[331084770,1720071042464,-4653.84,0.00014267,2]
[331084771,1720071042475,-500.0,0.00014267,2]
[331084772,1720071042485,-813.7,0.00014267,2]
[331084773,1720071042495,-500.0,0.00014267,2]
[331084774,1720071042505,-534.59,0.00014267,2]
[331084775,1720071042515,-745.73,0.00014267,2]
[331084776,1720071042525,-4183.82,0.00014267,2]
[331084777,1720071042535,-2289.86,0.00014267,2]
[331084778,1720071042545,-59567.4467516,0.00014509,2]
[331084779,1720071042556,-500.0,0.00014518,2]
[331084780,1720071042692,-1570.84,0.00014518,2]
[331084781,1720071042704,-576.45913378,0.00014518,2]
[331084782,1720071042714,-9214.43,0.00014518,2]
[331084783,1720071042724,-1090.17,0.00014518,2]
[331084784,1720071042735,-2043.3,0.00014518,2]
[331084785,1720071042745,-517.75,0.00014518,2]
[331084786,1720071042755,-500.0,0.00014518,2]
[331084787,1720071042765,-500.0,0.00014518,2]
[331084788,1720071042775,-500.0,0.00014518,2]
[331084789,1720071042786,-742.52,0.00014519,2]
[331084790,1720071042796,-500.0,0.00014519,2]
[331084791,1720071042807,-500.0,0.00014519,2]
[331084792,1720071042818,-500.0,0.00014519,2]
[331084793,1720071042828,-1156.87,0.00014519,2]
[331084794,1720071042839,-500.0,0.00014519,2]
[331084795,1720071042849,-500.0,0.00014519,2]
[331084796,1720071042871,-663.22,0.00014519,2]
[331084797,1720071042882,-965.03,0.00014519,2]
[331084798,1720071042892,-500.0,0.00014519,2]
[331084799,1720071042903,-500.0,0.00014519,2]
[331084800,1720071042914,-565.22,0.00014519,2]
[331084801,1720071042925,-500.0,0.00014519,2]
[331084802,1720071042935,-500.0,0.00014519,2]
[331084803,1720071042945,-500.0,0.00014519,2]
[331084804,1720071042956,-500.0,0.00014519,2]
[331084805,1720071042968,-500.0,0.00014519,2]
[331084806,1720071042979,-500.0,0.00014519,2]
[331084807,1720071042990,-500.0,0.00014519,2]
[331084808,1720071043001,-500.0,0.00014519,2]
[331084809,1720071043012,-500.0,0.00014519,2]
[331084810,1720071043023,-500.0,0.00014519,2]
[331084811,1720071043033,-500.0,0.00014519,2]
[331084812,1720071043044,-500.0,0.00014519,2]
[331084813,1720071043054,-500.0,0.00014519,2]
[331084814,1720071043064,-500.0,0.00014519,2]
[331084815,1720071043075,-500.0,0.00014519,2]
[331084816,1720071043085,-500.0,0.00014519,2]
[331084817,1720071043101,-596.11,0.00014519,2]
[331084818,1720071043111,-1443.45,0.00014519,2]
[331084819,1720071043122,-500.0,0.00014519,2]
[331084820,1720071043133,-1646.01,0.00014519,2]
[331084821,1720071043144,-823.14,0.00014519,2]
[331084822,1720071043155,-500.0,0.00014519,2]
[331084823,1720071043165,-500.0,0.00014519,2]
[331084824,1720071043178,-575.58,0.00014519,2]
[331084825,1720071043189,-659.09,0.00014519,2]
[331084826,1720071043199,-500.0,0.00014519,2]
[331084827,1720071043209,-500.0,0.00014519,2]
[331084828,1720071043220,-2957.53,0.00014519,2]
[331084829,1720071043230,-500.0,0.00014519,2]
[331084830,1720071043240,-500.0,0.00014519,2]
[331084832,1720071043250,-500.0,0.00014519,2]
[331084834,1720071043260,-500.0,0.00014519,2]
[331084835,1720071043270,-500.0,0.00014519,2]
[331084837,1720071043280,-984.97,0.00014519,2]
[331084839,1720071043290,-1782.01,0.00014519,2]
[331084840,1720071043300,-630.8,0.00014519,2]
[331084842,1720071043311,-7288.45,0.00014519,2]
[331084843,1720071043320,-2975.16,0.00014519,2]
[331084844,1720071043331,-500.0,0.00014519,2]
[331084845,1720071043341,-500.0,0.00014519,2]
[331084846,1720071043351,-500.0,0.00014519,2]
[331084847,1720071043361,-59567.4467516,0.00014519,2]
[331084848,1720071043371,-569.74,0.0001452,2]
[331084850,1720071043380,-500.0,0.00014528,2]
[331084852,1720071043390,-500.0,0.00014528,2]
[331084854,1720071043400,-500.0,0.00014528,2]
[331084856,1720071043411,-500.0,0.00014528,2]
[331084858,1720071043421,-500.0,0.00014528,2]
[331084861,1720071043431,-500.0,0.00014528,2]
[331084864,1720071043441,-618.63,0.00014528,2]
[331084867,1720071043451,-500.0,0.00014528,2]
[331084870,1720071043460,-500.0,0.00014528,2]
[331084871,1720071043470,-515.60059593,0.00014528,2]
[331084873,1720071043479,-500.0,0.00014528,2]
[331084874,1720071043489,-500.0,0.00014528,2]
[331084875,1720071043499,-500.0,0.00014528,2]
[331084876,1720071043509,-500.0,0.00014528,2]
[331084877,1720071043519,-500.0,0.00014528,2]
[331084878,1720071043528,-500.0,0.00014528,2]
[331084879,1720071043538,-500.0,0.00014528,2]
[331084880,1720071043548,-500.0,0.00014528,2]
[331084881,1720071043558,-500.0,0.00014528,2]
[331084882,1720071043568,-416.36549571,0.00014528,2]
[331084884,1720071043578,-445.85910362,0.00014528,2]
[331084885,1720071043587,-500.0,0.00014528,2]
[331084886,1720071043597,-500.0,0.00014528,2]
[331084888,1720071043607,-500.0,0.00014528,2]
[331084890,1720071043617,-500.0,0.00014528,2]
[331084891,1720071043627,-500.0,0.00014528,2]
[331084892,1720071043637,-500.0,0.00014528,2]
[331084893,1720071043647,-500.0,0.00014528,2]
[331084894,1720071043656,-500.0,0.00014528,2]
[331084896,1720071043666,-500.0,0.00014528,2]
[331084897,1720071043675,-500.0,0.00014528,2]
[331084898,1720071043685,-500.0,0.00014528,2]
[331084899,1720071043695,-500.0,0.00014528,2]
[331084900,1720071043704,-356.97583644,0.00014528,2]
[331084901,1720071043714,-500.0,0.00014528,2]
[331084902,1720071043724,-500.0,0.00014528,2]
[331084903,1720071043733,-561.68146604,0.00014528,2]
[331084904,1720071043743,-500.0,0.00014528,2]
[331084905,1720071043752,-500.0,0.00014528,2]
[331084906,1720071043762,-500.0,0.00014528,2]
[331084907,1720071043772,-500.0,0.00014528,2]
[331084908,1720071043781,-500.0,0.00014528,2]
[331084909,1720071043791,-500.0,0.00014528,2]
[331084910,1720071043801,-848.44,0.00014529,2]
[331084911,1720071043811,-500.0,0.00014529,2]
[331084912,1720071043821,-500.0,0.00014529,2]
[331084913,1720071043831,-500.0,0.00014529,2]
[331084914,1720071043841,-2897.49,0.00014529,2]
[331084915,1720071043851,-500.0,0.00014529,2]
[331084916,1720071043860,-500.0,0.00014529,2]
[331084917,1720071043869,-500.0,0.00014529,2]
[331084918,1720071043879,-500.0,0.00014529,2]
[331084919,1720071043888,-593.18,0.00014529,2]
[331084920,1720071043898,-500.0,0.00014529,2]
[331084921,1720071043907,-547.9,0.00014529,2]